fUSD/lending_fUSD_20260405
["ID","MTS","AMOUNT","RATE_DAILY","PERIOD"]
[419805371,1775389858119,-250.0,0.00016,2]
[419805372,1775389858129,-250.0,0.00016,2]
[419805373,1775389858140,-325.26403064,0.00016,2]
[419805374,1775389858150,-200.0,0.00016,2]
[419805375,1775389858160,-200.0,0.00016,2]
[419805376,1775389858170,-1000.0,0.00016,2]
[419805377,1775389858179,-1075.35,0.00016,2]
[419805378,1775389858189,-200.0,0.00016,2]
[419805379,1775389858199,-347.358444,0.00016,2]
[419805380,1775389858209,-347.358444,0.00016,2]
[419805381,1775389858219,-347.358444,0.00016,2]
[419805382,1775389858229,-347.358444,0.00016,2]
[419805383,1775389858239,-151.0,0.00016,2]
[419805384,1775389858249,-151.0,0.00016,2]
[419805385,1775389858259,-151.0,0.00016,2]
[419805386,1775389858269,-151.0,0.00016,2]
[419805387,1775389858279,-151.0,0.00016,2]
[419805388,1775389858289,-892.448042,0.00016,2]
[419805389,1775389858299,-892.448042,0.00016,2]
[419805390,1775389858310,-892.448042,0.00016,2]
[419805391,1775389858320,-892.448042,0.00016,2]
[419805392,1775389858330,-278.4301169,0.00016,2]
[419805393,1775389858341,-576.608559,0.00016,2]
[419805394,1775389858352,-576.608559,0.00016,2]
[419805395,1775389858362,-576.608559,0.00016,2]
[419805396,1775389858372,-576.608559,0.00016,2]
[419805397,1775389858383,-503.711803,0.00016,2]
[419805398,1775389858393,-503.711803,0.00016,2]
[419805399,1775389858403,-503.711803,0.00016,2]
[419805400,1775389858413,-503.711803,0.00016,2]
[419805401,1775389858423,-151.0,0.00016,2]
[419805402,1775389858434,-200.0,0.00016,2]
[419805403,1775389858444,-152.0,0.00016,2]
[419805404,1775389858455,-1525.0,0.00016,2]
[419805405,1775389858466,-154.50523658,0.00016,2]
[419805406,1775389858477,-1575.70159455,0.00016,2]
[419805407,1775389858487,-151.0,0.00016,2]
[419805408,1775389858497,-151.0,0.00016,2]
[419805409,1775389858508,-151.0,0.00016,2]
[419805410,1775389858519,-151.0,0.00016,2]
[419805411,1775389858529,-2000.0,0.00016001,2]
[419805412,1775389858539,-502.0,0.00016016,2]
[419805413,1775389858551,-171.0,0.0001602,5]
[419805414,1775389858562,-200.0,0.00016028,2]
[419805415,1775389858572,-1894.0,0.00016036,2]
[419805416,1775389858583,-426.0,0.00016061,5]
[419805417,1775389858592,-150.0,0.000161,2]
[419805418,1775389858602,-278.4301169,0.000161,2]
[419805419,1775389858613,-1441.20951351,0.00016101,30]
[419805420,1775389858623,-1500.0,0.00016101,2]
[419805421,1775389858632,-1500.0,0.00016101,2]
[419805422,1775389858644,-1500.0,0.00016101,2]
[419805423,1775389858655,-1500.0,0.00016101,2]
[419805424,1775389858665,-1500.0,0.00016101,2]
[419805425,1775389858675,-1500.0,0.00016101,2]
[419805426,1775389858685,-1500.0,0.00016101,2]
[419805427,1775389858695,-1500.0,0.00016101,2]
[419805428,1775389858706,-1500.0,0.00016101,2]
[419805429,1775389858716,-1544.912597,0.00016101,2]
[419805430,1775389858727,-1894.0,0.0001611,2]
[419805431,1775389858738,-8076.87,0.00016116,2]
[419805432,1775389858749,-1572.0,0.00016119,2]
[419805433,1775389858759,-150.0,0.00016137,2]
[419805434,1775389858769,-200.0,0.0001616,2]
[419805435,1775389858779,-200.0,0.0001616,2]
[419805436,1775389858789,-200.0,0.0001616,2]
[419805437,1775389858799,-500.0,0.00016161,2]
[419805438,1775389858809,-5888.0,0.00016204,2]
[419805439,1775389858820,-169.65,0.0001621,2]
[419805440,1775389858830,-1048.98200346,0.00016219,2]
[419805441,1775389858840,-660.90504219,0.00016222,4]
[419805442,1775389858850,-2811.0,0.00016224,2]
[419805443,1775389858860,-1048.98200346,0.00016274,2]
[419805444,1775389858870,-1894.0,0.00016276,2]
[419805445,1775389858880,-1894.0,0.00016278,2]
[419805446,1775389858891,-4000.0,0.00016282,2]
[419805447,1775389858901,-370.52,0.00016296,2]
[419805448,1775389858911,-1500.0,0.00016296,2]
[419805449,1775389858921,-1500.0,0.00016296,2]
[419805450,1775389858932,-200.0,0.00016322,2]
[419805451,1775389858942,-200.0,0.00016322,2]
[419805452,1775389858952,-200.0,0.0001634,2]
[419805453,1775389858962,-1048.98200346,0.00016356,2]
[419805454,1775389858972,-155.0,0.00016399,2]
[419805455,1775389858983,-2000.0,0.000164,2]
[419805456,1775389858994,-150.0,0.000164,2]
[419805457,1775389859003,-213.0,0.000164,2]
[419805458,1775389859013,-302.46,0.000164,2]
[419805459,1775389859023,-356.05031652,0.000164,2]
[419805460,1775389859033,-1048.98200346,0.00016411,2]
[419805461,1775389859043,-1894.0,0.00016425,2]
[419805462,1775389859053,-1894.0,0.0001643,2]
[419805463,1775389859062,-157.46,0.0001643,2]
[419805464,1775389859073,-500.0,0.00016435,2]
[419805465,1775389859084,-500.0,0.00016437,2]
[419805466,1775389859094,-1558.0,0.00016438,2]
[419805467,1775389859104,-1558.0,0.00016438,2]
[419805468,1775389859115,-1558.0,0.00016438,2]
[419805469,1775389859125,-1558.0,0.00016438,2]
[419805470,1775389859136,-1558.0,0.00016438,2]
[419805471,1775389859148,-1558.0,0.00016438,2]
[419805472,1775389859158,-1558.0,0.00016438,2]
[419805473,1775389859168,-1558.0,0.00016438,2]
[419805474,1775389859179,-1558.0,0.00016438,2]
[419805475,1775389859191,-1558.0,0.00016438,2]
[419805476,1775389859201,-1558.0,0.00016438,2]
[419805477,1775389859213,-1558.0,0.00016438,2]
[419805478,1775389859223,-1558.0,0.00016438,2]
[419805479,1775389859236,-1558.0,0.00016438,2]
[419805480,1775389859249,-1558.0,0.00016438,2]
[419805481,1775389859259,-1558.0,0.00016438,2]
[419805482,1775389859268,-1558.0,0.00016438,2]
[419805483,1775389859278,-1558.0,0.00016438,2]
[419805484,1775389859289,-1558.0,0.00016438,2]
[419805485,1775389859299,-1558.0,0.00016438,2]
[419805486,1775389859308,-1558.0,0.00016438,2]
[419805487,1775389859318,-1558.0,0.00016438,2]
[419805488,1775389859328,-1558.0,0.00016438,2]
[419805489,1775389859338,-1573.86094929,0.00016438,2]
[419805490,1775389859347,-2500.0,0.00016438,2]
[419805491,1775389859357,-2500.0,0.00016438,2]
[419805492,1775389859367,-2500.0,0.00016438,2]
[419805493,1775389859377,-2500.0,0.00016438,2]
[419805494,1775389859388,-2500.0,0.00016438,2]
[419805495,1775389859398,-2500.0,0.00016438,2]
[419805496,1775389859408,-2500.0,0.00016438,2]
[419805497,1775389859419,-2500.0,0.00016438,2]
[419805498,1775389859429,-2500.0,0.00016438,2]
[419805499,1775389859439,-2500.0,0.00016438,2]
[419805500,1775389859450,-2500.0,0.00016438,2]
[419805501,1775389859461,-2500.0,0.00016438,2]
[419805502,1775389859472,-2500.0,0.00016438,2]
[419805503,1775389859483,-2500.0,0.00016438,2]
[419805504,1775389859493,-2500.0,0.00016438,2]
[419805505,1775389859503,-2500.0,0.00016438,2]
[419805506,1775389859513,-2500.0,0.00016438,2]
[419805507,1775389859523,-2500.0,0.00016438,2]
[419805508,1775389859534,-2500.0,0.00016438,2]
[419805509,1775389859544,-2500.0,0.00016438,2]
[419805510,1775389859554,-2500.0,0.00016438,2]
[419805511,1775389859565,-2500.0,0.00016438,2]
[419805512,1775389859575,-2500.0,0.00016438,2]
[419805513,1775389859585,-2500.0,0.00016438,2]
[419805514,1775389859595,-2500.0,0.00016438,2]
[419805515,1775389859605,-2500.0,0.00016438,2]
[419805516,1775389859615,-259.04550794,0.00016438,2]
[419805517,1775389859625,-1191.47,0.00016438,2]
[419805518,1775389859635,-250.0,0.00016438,2]
[419805519,1775389859646,-1592.56,0.00016438,2]
[419805520,1775389859656,-900.0,0.00016438,2]
[419805521,1775389859666,-151.0,0.00016438,2]
[419805522,1775389859676,-151.0,0.00016438,2]
[419805523,1775389859687,-229.13,0.00016438,2]
[419805524,1775389860062,-500.0,0.00016438,2]
[419805525,1775389860073,-3000.0,0.00016438,2]
[419805526,1775389860083,-500.0,0.00016438,2]
[419805527,1775389860093,-1894.0,0.0001646,2]
[419805528,1775389860102,-200.0,0.00016485,2]
[419805529,1775389860111,-200.0,0.00016485,2]
[419805530,1775389860121,-2000.0,0.00016485,2]
[419805531,1775389860131,-1048.98200346,0.00016493,2]
[419805532,1775389860139,-6583.10663986,0.000165,2]
[419805533,1775389860149,-1000.0,0.00016521,2]
[419805534,1775389860158,-1000.0,0.00016521,2]
[419805535,1775389860168,-1000.0,0.00016521,2]
[419805536,1775389860178,-1048.98200346,0.00016548,2]
[419805537,1775389860187,-1600.0,0.0001655,2]
[419805538,1775389860196,-578.20924308,0.0001656,2]
[419805539,1775389860206,-500.0,0.0001656,2]
[419805540,1775389860215,-209.40437684,0.0001656,2]
[419805541,1775389860224,-200.0,0.0001656,2]
[419805542,1775389860234,-1428.38747117,0.0001656,2]
[419805543,1775389860243,-500.0,0.0001656,2]
[419805544,1775389860252,-500.0,0.0001656,2]
[419805545,1775389860261,-500.0,0.0001656,2]
[419805546,1775389860271,-500.0,0.0001656,2]
[419805547,1775389860280,-151.0,0.0001656,2]
[419805548,1775389860289,-500.0,0.0001656,2]
[419805549,1775389860299,-151.0,0.0001656,2]
[419805550,1775389860309,-500.0,0.0001656,2]
[419805551,1775389860319,-151.0,0.0001656,2]
[419805552,1775389860327,-500.0,0.0001656,2]
[419805553,1775389860336,-154.76515316,0.0001656,2]
[419805554,1775389860346,-500.0,0.0001656,2]
[419805555,1775389860355,-500.0,0.0001656,2]
[419805556,1775389860364,-500.0,0.0001656,2]
[419805557,1775389860374,-500.0,0.0001656,2]
[419805558,1775389860383,-721.12765535,0.0001656,2]
[419805559,1775389860392,-3000.0,0.0001656,2]
[419805560,1775389860402,-3000.0,0.0001656,2]
[419805561,1775389860412,-3000.0,0.0001656,2]
[419805562,1775389860421,-3000.0,0.0001656,2]
[419805563,1775389860431,-3000.0,0.0001656,2]
[419805564,1775389860440,-3000.0,0.0001656,2]
[419805565,1775389860449,-3000.0,0.0001656,2]
[419805566,1775389860459,-3000.0,0.0001656,2]
[419805567,1775389860469,-3000.0,0.0001656,2]
[419805568,1775389860478,-3000.0,0.0001656,2]
[419805569,1775389860489,-3000.0,0.0001656,2]
[419805570,1775389860499,-174.61919141,0.0001656,2]
[419805571,1775389860509,-1000.0,0.0001656,2]
[419805572,1775389860519,-1000.0,0.0001656,2]
[419805573,1775389860529,-1000.0,0.0001656,2]
[419805574,1775389860540,-1000.0,0.0001656,2]
[419805575,1775389860550,-1000.0,0.0001656,2]
[419805576,1775389860559,-1000.0,0.0001656,2]
[419805577,1775389860569,-209.40437684,0.0001656,2]
[419805578,1775389860578,-151.0,0.0001656,2]
[419805579,1775389860588,-1000.0,0.0001656,2]
[419805580,1775389860597,-1000.0,0.0001656,2]
[419805581,1775389860607,-1000.0,0.0001656,2]
[419805582,1775389860617,-1000.0,0.0001656,2]
[419805583,1775389860626,-151.0,0.0001656,2]
[419805584,1775389860636,-1085.63289183,0.0001656,2]
[419805585,1775389860645,-156.587,0.0001656,2]
[419805586,1775389860654,-200.0,0.0001656,2]
[419805587,1775389860664,-195.25511793,0.0001656,2]
[419805588,1775389860673,-743.50770149,0.0001656,2]
[419805589,1775389860683,-693.3919763,0.0001656,2]
[419805590,1775389860692,-170.0,0.0001656,2]
[419805591,1775389860702,-170.0,0.0001656,2]
[419805592,1775389860711,-279.9045709,0.0001656,2]
[419805593,1775389860721,-170.0,0.0001656,2]
[419805594,1775389860730,-170.0,0.0001656,2]
[419805595,1775389860740,-170.0,0.0001656,2]
[419805596,1775389860750,-170.0,0.0001656,2]
[419805597,1775389860759,-170.0,0.0001656,2]
[419805598,1775389860768,-500.0,0.0001656,2]
[419805599,1775389860779,-500.0,0.0001656,2]
[419805600,1775389860788,-500.0,0.0001656,2]
[419805601,1775389860798,-170.0,0.0001656,2]
[419805602,1775389860808,-500.0,0.0001656,2]
[419805603,1775389860819,-170.0,0.0001656,2]
[419805604,1775389860829,-500.0,0.0001656,2]
[419805605,1775389860839,-170.0,0.0001656,2]
[419805606,1775389860849,-170.0,0.0001656,2]
[419805607,1775389860858,-1894.0,0.00016564,2]
[419805608,1775389860867,-1894.0,0.00016571,2]
[419805609,1775389860877,-200.0,0.00016576,2]
[419805610,1775389860886,-363.58096714,0.000166,2]
[419805611,1775389860897,-1048.98200346,0.00016603,2]
[419805612,1775389860906,-1894.0,0.00016614,2]
[419805613,1775389860917,-500.0,0.00016615,2]
[419805614,1775389860926,-151.0,0.00016615,2]
[419805615,1775389860936,-1894.0,0.0001663,2]
[419805616,1775389860945,-1115.0,0.00016648,2]
[419805617,1775389860954,-200.0,0.0001665,2]
[419805618,1775389860963,-500.0,0.0001667,2]
[419805619,1775389860972,-151.0,0.0001667,2]
[419805620,1775389860983,-4000.0,0.0001667,2]
[419805621,1775389860994,-151.0,0.00016675,5]
[419805622,1775389861003,-1048.98200346,0.00016685,2]
[419805623,1775389861012,-1894.0,0.00016698,2]
[419805624,1775389861022,-5888.0,0.00016699,2]
[419805625,1775389861031,-500.0,0.00016709,2]
[419805626,1775389861042,-159.82,0.00016712,2]
[419805627,1775389861052,-301.03881414,0.00016716,2]
[419805628,1775389861061,-1525.0,0.00016716,2]
[419805629,1775389861071,-1525.0,0.00016716,2]
[419805630,1775389861080,-152.0,0.00016716,2]
[419805631,1775389861091,-152.0,0.00016716,2]
[419805632,1775389861100,-152.0,0.00016716,2]
[419805633,1775389861110,-152.0,0.00016716,2]
[419805634,1775389861120,-152.0,0.00016716,2]
[419805635,1775389861130,-1525.0,0.00016716,2]
[419805636,1775389861139,-152.0,0.00016716,2]
[419805637,1775389861149,-152.0,0.00016716,2]
[419805638,1775389861158,-1525.0,0.00016716,2]
[419805639,1775389861167,-152.0,0.00016716,2]
[419805640,1775389861176,-1525.0,0.00016716,2]
[419805641,1775389861185,-152.0,0.00016716,2]
[419805642,1775389861195,-1525.0,0.00016716,2]
[419805643,1775389861204,-152.0,0.00016716,2]
[419805644,1775389861214,-1525.0,0.00016716,2]
[419805645,1775389861223,-152.0,0.00016716,2]
[419805646,1775389861232,-1525.0,0.00016716,2]
[419805647,1775389861241,-152.0,0.00016716,2]
[419805648,1775389861250,-1525.0,0.00016716,2]
[419805649,1775389861259,-1525.0,0.00016716,2]
[419805650,1775389861268,-1525.0,0.00016716,2]
[419805651,1775389861278,-1525.0,0.00016716,2]
[419805652,1775389861287,-1525.0,0.00016716,2]
[419805653,1775389861296,-1525.0,0.00016716,2]
[419805654,1775389861305,-1525.0,0.00016716,2]
[419805655,1775389861314,-157.47547331,0.00016716,2]
[419805656,1775389861323,-500.0,0.00016725,2]
[419805657,1775389861332,-151.0,0.00016725,2]
[419805658,1775389861341,-1048.98200346,0.0001674,2]
[419805659,1775389861350,-2258.0,0.0001675,2]
[419805660,1775389861359,-5888.0,0.00016765,2]
[419805661,1775389861369,-500.0,0.0001678,2]
[419805662,1775389861379,-151.0,0.0001678,2]
[419805663,1775389861388,-1894.0,0.00016795,2]
[419805664,1775389861397,-5888.0,0.00016798,2]
[419805665,1775389861406,-155.0,0.00016799,2]
[419805666,1775389861416,-262.0,0.0001681,2]
[419805667,1775389861425,-1048.98200346,0.00016822,2]
[419805668,1775389861434,-500.0,0.00016835,2]
[419805669,1775389861443,-151.0,0.00016835,2]
[419805670,1775389861452,-157.46,0.00016841,7]
[419805671,1775389861461,-881.74,0.00016841,2]
[419805672,1775389861470,-1171.96403511,0.00016844,2]
[419805673,1775389861479,-1000.0,0.00016844,2]
[419805674,1775389861489,-1894.0,0.00016862,2]
[419805675,1775389861498,-168.69625025,0.00016873,6]
[419805676,1775389861507,-1048.98200346,0.00016877,2]
[419805677,1775389861516,-500.0,0.0001689,2]
[419805678,1775389861525,-151.0,0.0001689,2]
[419805679,1775389861534,-3620.0,0.0001689,2]
[419805680,1775389861544,-281.2642,0.000169,2]
[419805681,1775389861553,-955.56047568,0.00016906,30]
[419805682,1775389861563,-158.97,0.00016906,7]
[419805683,1775389861573,-169.67,0.00016906,7]
[419805684,1775389861582,-156.74,0.00016906,7]
[419805685,1775389861592,-1894.0,0.00016912,2]
[419805686,1775389861601,-1048.98200346,0.00016932,2]
[419805687,1775389861611,-200.0,0.00016938,2]
[419805688,1775389861620,-500.0,0.00016945,2]
[419805689,1775389861629,-151.0,0.00016945,2]
[419805690,1775389861639,-5888.0,0.00016966,2]
[419805691,1775389861648,-500.0,0.00016983,2]
[419805692,1775389861658,-5888.0,0.00016996,2]
[419805693,1775389861668,-300.0,0.00016999,2]
[419805694,1775389861678,-300.0,0.00016999,2]
[419805695,1775389861688,-666.0,0.00016999,2]
[419805696,1775389861699,-666.0,0.00016999,2]
[419805697,1775389861709,-666.0,0.00016999,2]
[419805698,1775389861719,-500.0,0.00017,2]
[419805699,1775389861728,-151.0,0.00017,2]
[419805700,1775389861738,-312.83646191,0.00017,2]
[419805701,1775389861747,-1171329.62683614,0.00017,2]
[419805702,1775389861758,-5964.10599486,0.00017,2]
[419805703,1775389861768,-350.0,0.00017,2]
[419805704,1775389861778,-1894.0,0.00017015,2]
[419805705,1775389861787,-1544.61,0.00017019,2]
[419805706,1775389861797,-878.62,0.00017019,2]
[419805707,1775389861807,-351.0,0.00017028,4]
[419805708,1775389861816,-1894.0,0.00017036,2]
[419805709,1775389861826,-508.0,0.00017046,5]
[419805710,1775389861836,-500.0,0.00017055,2]
[419805711,1775389861846,-151.0,0.00017055,2]
[419805712,1775389861855,-4000.0,0.00017058,2]
[419805713,1775389861864,-5888.0,0.00017061,2]
[419805714,1775389861875,-1500.0,0.00017068,2]
[419805715,1775389861885,-1500.0,0.00017068,2]
[419805716,1775389861894,-1500.0,0.00017068,2]
[419805717,1775389861904,-300.0,0.00017099,2]
[419805718,1775389861913,-666.0,0.00017099,2]
[419805719,1775389861924,-666.0,0.00017099,2]
[419805720,1775389861933,-89273.48240247,0.000171,2]
[419805721,1775389861944,-300.0,0.00017107,2]
[419805722,1775389861953,-608.83994388,0.00017107,2]
[419805723,1775389861962,-217.15233878,0.00017108,2]
[419805724,1775389861971,-1481.23780761,0.00017108,2]
[419805725,1775389861980,-181.08010149,0.00017108,2]
[419805726,1775389861990,-339.62894544,0.00017108,2]
[419805727,1775389862000,-200.0,0.00017108,2]
[419805728,1775389862009,-771.01748645,0.00017108,2]
[419805729,1775389862020,-719.04747942,0.00017108,2]
[419805730,1775389862029,-290.26104003,0.00017108,2]
[419805731,1775389862039,-1894.0,0.00017109,2]
[419805732,1775389862050,-500.0,0.0001711,2]
[419805733,1775389862059,-151.0,0.0001711,2]
[419805734,1775389862069,-429.28,0.00017115,2]
[419805735,1775389862079,-155.0,0.00017199,2]
[419805736,1775389862088,-200.08683734,0.000172,2]
[419805737,1775389862098,-419.0,0.00017229,2]
[419805738,1775389862107,-157.46,0.00017251,7]
[419805739,1775389862116,-500.0,0.00017257,2]
[419805740,1775389862126,-1484.0,0.00017332,5]
[419805741,1775389862135,-1195.0,0.00017332,5]
[419805742,1775389862144,-1234.0,0.00017332,5]
[419805743,1775389862154,-287.1273,0.00017428,2]
[419805744,1775389862164,-1115.0,0.00017524,2]
[419805745,1775389862173,-638.23098968,0.00017531,2]
[419805746,1775389862183,-155.0,0.00017599,2]
[419805747,1775389862192,-878.0,0.000176,2]
[419805748,1775389862202,-306.0,0.000176,2]
[419805749,1775389862211,-1000.0,0.000176,2]
[419805750,1775389862220,-313.0,0.000176,2]
[419805751,1775389862229,-211.95,0.000176,7]
[419805752,1775389862239,-169.66,0.000176,7]
[419805753,1775389862249,-174.96,0.000176,7]
[419805754,1775389862259,-500.0,0.00017616,2]
[419805755,1775389862271,-1193.24301277,0.00017616,2]
[419805756,1775389862283,-2000.0,0.00017616,2]
[419805757,1775389862292,-225.18697532,0.00017656,2]
[419805758,1775389862302,-1536.04360649,0.00017656,2]
[419805759,1775389862311,-187.78006525,0.00017656,2]
[419805760,1775389862321,-200.0,0.00017656,2]
[419805761,1775389862330,-799.54513345,0.00017656,2]
[419805762,1775389862339,-745.65223616,0.00017656,2]
[419805763,1775389862348,-301.00069851,0.00017656,2]
[419805764,1775389862358,-157.46,0.00017662,7]
[419805765,1775389862374,-151.0,0.00017675,5]
[419805766,1775389862388,-1872.24,0.000177,2]
[419805767,1775389862398,-626.28,0.000177,2]
[419805768,1775389862407,-788.8207043,0.000177,2]
[419805769,1775389862416,-931.27802378,0.00017751,30]
[419805770,1775389862426,-532.40918815,0.00017822,2]
[419805771,1775389862436,-2000.0,0.00017822,2]
[419805772,1775389862445,-1010.07365691,0.0001786,2]
[419805773,1775389862454,-1232.42529034,0.0001789,2]
[419805774,1775389862463,-1079.94388733,0.0001789,2]
[419805775,1775389862474,-300.0,0.00017989,2]
[419805776,1775389862486,-666.0,0.00017989,2]
[419805777,1775389862495,-20000.0,0.0001799,2]
[419805778,1775389862505,-300.0,0.00017999,2]
[419805779,1775389862515,-110304.11920261,0.00018,2]
[419805780,1775389862524,-1201.13504882,0.00018,2]
[419805781,1775389862534,-1001.55590549,0.00018,2]
[419805782,1775389862544,-309.66593796,0.00018,2]
[419805783,1775389862554,-1012.0,0.00018,2]
[419805784,1775389862564,-200.947812,0.00018,2]
[419805785,1775389862573,-200.0,0.00018003,2]
[419805786,1775389862582,-335.57227202,0.0001805,2]
[419805787,1775389862592,-368.006862,0.00018051,2]
[419805788,1775389862602,-157.47,0.00018073,7]
[419805789,1775389862611,-238.0,0.00018083,7]
[419805790,1775389862620,-1792.73232799,0.000181,2]
[419805791,1775389862630,-1600.0,0.00018105,7]
[419805792,1775389862640,-3000.0,0.00018105,7]
[419805793,1775389862650,-2500.0,0.00018164,2]
[419805794,1775389862659,-233.51889341,0.00018204,2]
[419805795,1775389862669,-1592.87721993,0.00018204,2]
[419805796,1775389862678,-194.72792766,0.00018204,2]
[419805797,1775389862687,-200.0,0.00018204,2]
[419805798,1775389862697,-829.12830338,0.00018204,2]
[419805799,1775389862707,-773.2413689,0.00018204,2]
[419805800,1775389862716,-6579.8,0.00018212,2]
[419805801,1775389862726,-1816.08,0.00018231,2]
[419805802,1775389862737,-607.5,0.00018231,2]
[419805803,1775389862748,-351.0,0.00018267,4]
[419805804,1775389862759,-318.9474,0.000183,2]
[419805805,1775389862768,-300.0,0.00018355,2]
[419805806,1775389862778,-387.13925442,0.00018355,2]
[419805807,1775389862788,-666.0,0.00018355,2]
[419805808,1775389862799,-300.0,0.00018355,2]
[419805809,1775389862808,-89194.4,0.00018356,2]
[419805810,1775389862819,-508.0,0.00018357,6]
[419805811,1775389862828,-229.803991,0.00018395,2]
[419805812,1775389862840,-3162.0,0.00018425,2]
[419805813,1775389862849,-300.0,0.00018437,2]
[419805814,1775389862861,-666.0,0.00018437,2]
[419805815,1775389862871,-1115.0,0.00018446,2]
[419805816,1775389862881,-1000.0,0.0001847,2]
[419805817,1775389862890,-500.0,0.00018521,2]
[419805818,1775389862899,-1000.0,0.00018534,2]
[419805819,1775389862910,-1000.0,0.00018537,2]
[419805820,1775389862919,-1521.0,0.00018577,2]
[419805821,1775389862929,-1592.56,0.00018601,2]
[419805822,1775389862940,-1572.0,0.00018638,2]
[419805823,1775389862949,-151.0,0.00018675,5]
[419805824,1775389862958,-300.0,0.0001869,2]
[419805825,1775389862968,-8422.99193755,0.00018691,2]
[419805826,1775389862978,-871.95012592,0.00018691,2]
[419805827,1775389862987,-301.04884516,0.00018752,2]
[419805828,1775389862997,-1651.81367706,0.00018752,2]
[419805829,1775389863007,-201.93286099,0.00018752,2]
[419805830,1775389863016,-200.0,0.00018752,2]
[419805831,1775389863026,-245.70032162,0.00018752,2]
[419805832,1775389863035,-1759.91,0.00018762,2]
[419805833,1775389863044,-1000.0,0.00018819,2]
[419805834,1775389863054,-150.0,0.00018865,2]
[419805835,1775389863063,-150.0,0.00018865,2]
[419805836,1775389863072,-150.0,0.00018865,2]
[419805837,1775389863081,-150.0,0.00018865,2]
[419805838,1775389863090,-300.0,0.00018889,2]
[419805839,1775389863099,-300.0,0.00018889,2]
[419805840,1775389863109,-1046.0,0.0001889,2]
[419805841,1775389863118,-622.0,0.0001889,2]
[419805842,1775389863127,-3522.0,0.0001889,2]
[419805843,1775389863137,-1263.0,0.0001889,2]
[419805844,1775389863146,-1217.0,0.0001889,2]
[419805845,1775389863155,-3770.0,0.0001889,2]
[419805846,1775389863164,-6020.0,0.0001889,2]
[419805847,1775389863174,-429.6676209,0.00018891,2]
[419805848,1775389863183,-1000.0,0.00018896,2]
[419805849,1775389863193,-1000.0,0.00018945,2]
[419805850,1775389863202,-300.0,0.00018999,2]
[419805851,1775389863217,-300.0,0.00018999,2]
[419805852,1775389863227,-7151.76505981,0.00019,2]
[419805853,1775389863236,-5000.0,0.00019,2]
[419805854,1775389863246,-5000.0,0.00019,2]
[419805855,1775389863256,-5000.0,0.00019,2]
[419805856,1775389863265,-5209.15208035,0.00019,2]
[419805857,1775389863275,-2879.39950676,0.00019,2]
[419805858,1775389863285,-1790.85394797,0.00019,2]
[419805859,1775389863294,-400.0,0.00019,2]
[419805860,1775389863304,-200.0,0.00019069,2]
[419805861,1775389863314,-1000.0,0.0001909,2]
[419805862,1775389863323,-1000.0,0.00019106,2]
[419805863,1775389863333,-300.0,0.00019166,2]
[419805864,1775389863342,-151.0,0.00019167,2]
[419805865,1775389863352,-151.0,0.00019167,2]
[419805866,1775389863362,-500.0,0.00019173,2]
[419805867,1775389863372,-160.40063666,0.00019178,2]
[419805868,1775389863383,-150.0,0.00019178,2]
[419805869,1775389863393,-150.0,0.00019178,2]
[419805870,1775389863403,-150.0,0.00019178,2]